[Event "Orsha A 2021"]
[Site "Orsha"]
[Date "2021.04.06"]
[Round "1.1"]
[White "Shydlouski, Artsiom"]
[Black "Aleksandrov, Aleksej"]
[Result "0-1"]
[ECO "D51"]
[WhiteElo "1684"]
[BlackElo "2563"]
[Annotator "ChessBase"]
[PlyCount "72"]
[EventDate "2021.04.06"]
[EventType "swiss"]
[EventCountry "BLR"]
[SourceTitle "playchess.com"]
[Source "ChessBase"]
[SourceQuality "1"]
[TimeControl "5400+30"]

1. d4 {[%emt 0:00:00]} d5 {[%emt 0:00:00]} 2. Nf3 {[%emt 0:00:00]} Nf6 {[%emt 0:00:00]} 3. c4 {[%emt 0:00:00]} e6 {[%emt 0:00:00]} 4. Nc3 {[%emt 0:00:00]} Nbd7 {[%emt 0:00:11]} 5. Bg5 {[%emt 0:00:00]} h6 {[%emt 0:00:21]} 6. Bxf6 {[%emt 0:00:25]} Nxf6 {[%emt 0:00:04]} 7. cxd5 {[%emt 0:00:03]} exd5 {[%emt 0:00:05]} 8. e3 {[%emt 0:00:03]} Bd6 {[%emt 0:00:25]} 9. Bd3 {[%emt 0:00:46]} O-O {[%emt 0:00:05]} 10. Ne5 {[%emt 0:02:56]} Bxe5 {[%emt 0:01:09]} 11. dxe5 {[%emt 0:00:04]} Ng4 {[%emt 0:00:05]} 12. Be2 {[%emt 0:00:03]} Nxe5 {[%emt 0:00:21]} 13. Qxd5 {[%emt 0:00:08]} Qe7 {[%emt 0:00:57]} 14. O-O {[%emt 0:01:57]} c6 {[%emt 0:00:36]} 15. Qe4 {[%emt 0:00:45]} f5 {[%emt 0:00:41]} 16. Qc2 {[%emt 0:03:50]} Be6 {[%emt 0:00:46]} 17. f4 {[%emt 0:07:23]} Nc4 {[%emt 0:00:45]} 18. Bxc4 {[%emt 0:00:06]} Bxc4 {[%emt 0:00:03]} 19. Rfe1 {[%emt 0:00:06]} Rad8 {[%emt 0:00:03]} 20. e4 {[%emt 0:01:18]} fxe4 {[%emt 0:02:07]} 21. Qxe4 {[%emt 0:07:26]} Qf7 {[%emt 0:00:11]} 22. g3 {[%emt 0:24:03]} Rfe8 {[%emt 0:00:11]} 23. Qg2 {[%emt 0:00:09]} Rxe1+ {[%emt 0:00:15]} 24. Rxe1 {[%emt 0:00:06]} Bxa2 {[%emt 0:00:04]} 25. Qe4 {[%emt 0:02:54]} Bc4 {[%emt 0:03:38]} 26. Qe5 {[%emt 0:04:35]} Qf8 {[%emt 0:05:00]} 27. f5 {[%emt 0:05:22]} b5 {[%emt 0:02:35]} 28. Re4 {[%emt 0:04:57]} Bd3 {[%emt 0:03:26]} 29. Rf4 {[%emt 0:00:18]} Qe8 {[%emt 0:06:50]} 30. Qc5 {[%emt 0:02:54]} a5 {[%emt 0:04:13]} 31. f6 {[%emt 0:07:17]} gxf6 {[%emt 0:00:08]} 32. Rxf6 {[%emt 0:01:04]} b4 {[%emt 0:02:07]} 33. Na4 {[%emt 0:06:32]} Rd5 {[%emt 0:14:19]} 34. Qc1 {[%emt 0:00:09]} Re5 {[%emt 0:00:21]} 35. Qxh6 {[%emt 0:01:19]} Re1+ {[%emt 0:00:04]} 36. Kg2 {[%emt 0:00:05]} Qe4+ {[%emt 0:00:08]} 0-1

[Event "Orsha A 2021"]
[Site "Orsha"]
[Date "2021.04.06"]
[Round "1.2"]
[White "Stupak, Kirill"]
[Black "Bugaev, Anton"]
[Result "1-0"]
[ECO "D72"]
[WhiteElo "2501"]
[BlackElo "1748"]
[Annotator "ChessBase"]
[PlyCount "99"]
[EventDate "2021.04.06"]
[EventType "swiss"]
[EventCountry "BLR"]
[SourceTitle "playchess.com"]
[Source "ChessBase"]
[SourceQuality "1"]
[TimeControl "5400+30"]

1. d4 {[%emt 0:00:00]} Nf6 {[%emt 0:00:00]} 2. g3 {[%emt 0:00:00]} g6 {[%emt 0:00:00]} 3. Bg2 {[%emt 0:00:00]} d5 {[%emt 0:00:13]} 4. c4 {[%emt 0:00:00]} Bg7 {[%emt 0:00:50]} 5. cxd5 {[%emt 0:00:00]} Nxd5 {[%emt 0:00:13]} 6. e4 {[%emt 0:00:00]} Nb6 {[%emt 0:00:24]} 7. Ne2 {[%emt 0:00:00]} O-O {[%emt 0:01:15]} 8. O-O {[%emt 0:00:05]} Nc6 {[%emt 0:01:26]} 9. d5 {[%emt 0:00:32]} Na5 {[%emt 0:01:18]} 10. Qe1 {[%emt 0:04:32]} Nac4 {[%emt 0:01:15]} 11. Nbc3 {[%emt 0:00:04]} c6 {[%emt 0:07:51]} 12. dxc6 {[%emt 0:00:33]} bxc6 {[%emt 0:00:13]} 13. b3 {[%emt 0:00:08]} Ne5 {[%emt 0:01:38]} 14. Ba3 {[%emt 0:02:46]} Bh3 {[%emt 0:09:58]} 15. Rd1 {[%emt 0:02:17]} Bxg2 {[%emt 0:04:56]} 16. Kxg2 {[%emt 0:00:06]} Qc7 {[%emt 0:01:16]} 17. f4 {[%emt 0:00:26]} Ng4 {[%emt 0:02:01]} 18. Bc5 {[%emt 0:03:55]} Rfd8 {[%emt 0:05:38]} 19. h3 {[%emt 0:01:26]} Rxd1 {[%emt 0:02:06]} 20. Qxd1 {[%emt 0:03:27]} Nf6 {[%emt 0:01:40]} 21. Qc1 {[%emt 0:01:06]} e6 {[%emt 0:13:07]} 22. e5 {[%emt 0:02:55]} Nfd5 {[%emt 0:02:05]} 23. Ne4 {[%emt 0:01:40]} Nd7 {[%emt 0:03:15]} 24. Bf2 {[%emt 0:04:04]} Bf8 {[%emt 0:07:33]} 25. N2c3 {[%emt 0:00:59]} c5 {[%emt 0:02:47]} 26. Rd1 {[%emt 0:08:57]} Qc6 {[%emt 0:01:47]} 27. Kh2 {[%emt 0:00:30]} Rc8 {[%emt 0:01:54]} 28. Qd2 {[%emt 0:01:24]} Nxc3 {[%emt 0:04:27]} 29. Nxc3 {[%emt 0:00:10]} Nb6 {[%emt 0:00:14]} 30. Qe2 {[%emt 0:07:30]} Nd5 {[%emt 0:09:19]} 31. Ne4 {[%emt 0:03:01]} c4 {[%emt 0:03:50]} 32. bxc4 {[%emt 0:00:58]} Qxc4 {[%emt 0:00:36]} 33. Qxc4 {[%emt 0:00:38]} Rxc4 {[%emt 0:00:08]} 34. Nf6+ {[%emt 0:00:01]} Kg7 {[%emt 0:04:11]} 35. Nxd5 {[%emt 0:00:35]} exd5 {[%emt 0:00:07]} 36. Rxd5 {[%emt 0:00:43]} Rc2 {[%emt 0:00:50]} 37. Kg1 {[%emt 0:00:21]} Rxa2 {[%emt 0:00:41]} 38. Rd7 {[%emt 0:00:36]} Kg8 {[%emt 0:00:42]} 39. g4 {[%emt 0:00:43]} Ra4 {[%emt 0:02:33]} 40. Bh4 {[%emt 0:06:07]} Rxf4 {[%emt 0:04:06]} 41. Rd8 {[%emt 0:02:40]} f6 {[%emt 0:00:55]} 42. Bg3 {[%emt 0:03:51]} Re4 {[%emt 0:00:42]} 43. exf6 {[%emt 0:00:06]} Re6 {[%emt 0:00:42]} 44. g5 {[%emt 0:00:39]} Kf7 {[%emt 0:00:29]} 45. Rd7+ {[%emt 0:02:12]} Kg8 {[%emt 0:00:44]} 46. Bf2 {[%emt 0:00:47]} h6 {[%emt 0:00:28]} 47. gxh6 {[%emt 0:00:29]} Bxh6 {[%emt 0:00:30]} 48. f7+ {[%emt 0:00:10]} Kg7 {[%emt 0:00:25]} 49. Bd4+ {[%emt 0:00:17]} Rf6 {[%emt 0:00:07]} 50. f8=Q+ {[%emt 0:00:18]} 1-0

[Event "Orsha A 2021"]
[Site "Orsha"]
[Date "2021.04.06"]
[Round "1.3"]
[White "Barkasheva, Sofia"]
[Black "Zarubitski, Viachaslau"]
[Result "0-1"]
[ECO "B48"]
[WhiteElo "1636"]
[BlackElo "2456"]
[Annotator "ChessBase"]
[PlyCount "82"]
[EventDate "2021.04.06"]
[EventType "swiss"]
[EventCountry "BLR"]
[SourceTitle "playchess.com"]
[Source "ChessBase"]
[SourceQuality "1"]
[TimeControl "5400+30"]

1. e4 {[%emt 0:00:00]} c5 {[%emt 0:00:25]} 2. Nf3 {[%emt 0:00:00]} e6 {[%emt 0:00:04]} 3. d4 {[%emt 0:00:00]} cxd4 {[%emt 0:00:03]} 4. Nxd4 {[%emt 0:00:00]} Nc6 {[%emt 0:00:02]} 5. Nc3 {[%emt 0:00:01]} Qc7 {[%emt 0:00:06]} 6. Be3 {[%emt 0:01:00]} a6 {[%emt 0:00:04]} 7. a3 {[%emt 0:01:51]} Nf6 {[%emt 0:00:10]} 8. Be2 {[%emt 0:01:02]} b5 {[%emt 0:00:25]} 9. Bf3 {[%emt 0:03:33]} Bb7 {[%emt 0:00:12]} 10. Nxc6 {[%emt 0:09:16]} Bxc6 {[%emt 0:00:07]} 11. Qd3 {[%emt 0:02:44]} Be7 {[%emt 0:03:11]} 12. O-O {[%emt 0:01:14]} h5 {[%emt 0:00:39]} 13. Rfd1 {[%emt 0:07:10]} Ng4 {[%emt 0:00:15]} 14. g3 {[%emt 0:06:42]} Nxe3 {[%emt 0:00:31]} 15. Qxe3 {[%emt 0:00:17]} Qe5 {[%emt 0:00:07]} 16. Qd4 {[%emt 0:04:46]} Bf6 {[%emt 0:00:11]} 17. Qxe5 {[%emt 0:06:36]} Bxe5 {[%emt 0:00:02]} 18. Rd3 {[%emt 0:00:28]} g5 {[%emt 0:00:19]} 19. Rad1 {[%emt 0:02:36]} Rc8 {[%emt 0:01:11]} 20. R1d2 {[%emt 0:02:34]} d6 {[%emt 0:00:13]} 21. b3 {[%emt 0:02:29]} Ke7 {[%emt 0:00:07]} 22. Ne2 {[%emt 0:00:47]} Bb7 {[%emt 0:00:26]} 23. Bg2 {[%emt 0:02:52]} g4 {[%emt 0:00:20]} 24. Nd4 {[%emt 0:04:14]} h4 {[%emt 0:01:17]} 25. b4 {[%emt 0:03:31]} hxg3 {[%emt 0:00:08]} 26. hxg3 {[%emt 0:00:23]} Rc4 {[%emt 0:00:35]} 27. Bf1 {[%emt 0:06:23]} Bxe4 {[%emt 0:00:15]} 28. Nf3 {[%emt 0:02:07]} Bxf3 {[%emt 0:00:19]} 29. Rxf3 {[%emt 0:00:53]} gxf3 {[%emt 0:00:03]} 30. Bxc4 {[%emt 0:00:07]} bxc4 {[%emt 0:00:03]} 31. Rd1 {[%emt 0:00:51]} d5 {[%emt 0:00:06]} 32. Rb1 {[%emt 0:01:25]} Bd4 {[%emt 0:00:07]} 33. a4 {[%emt 0:01:05]} Rh3 {[%emt 0:00:06]} 34. a5 {[%emt 0:01:03]} Rxg3+ {[%emt 0:00:04]} 35. Kf1 {[%emt 0:00:17]} Rg2 {[%emt 0:00:01]} 36. b5 {[%emt 0:00:50]} Rxf2+ {[%emt 0:00:01]} 37. Ke1 {[%emt 0:00:09]} Re2+ {[%emt 0:00:01]} 38. Kf1 {[%emt 0:00:14]} Rf2+ {[%emt 0:00:02]} 39. Ke1 {[%emt 0:00:13]} axb5 {[%emt 0:00:01]} 40. Rxb5 {[%emt 0:00:14]} Re2+ {[%emt 0:00:01]} 41. Kf1 {[%emt 0:00:21]} Rxc2 {[%emt 0:00:02]} 0-1

[Event "Orsha A 2021"]
[Site "Orsha"]
[Date "2021.04.06"]
[Round "1.4"]
[White "Apryshko, Gleb"]
[Black "Gamburg, Alexandr"]
[Result "1-0"]
[ECO "B10"]
[WhiteElo "2391"]
[BlackElo "1628"]
[Annotator "ChessBase"]
[PlyCount "55"]
[EventDate "2021.04.06"]
[EventType "swiss"]
[EventCountry "BLR"]
[SourceTitle "playchess.com"]
[Source "ChessBase"]
[SourceQuality "1"]
[TimeControl "5400+30"]

1. e4 {[%emt 0:01:42]} c6 {[%emt 0:00:00]} 2. d3 {[%emt 0:00:14]} d5 {[%emt 0:00:00]} 3. Nd2 {[%emt 0:00:01]} e5 {[%emt 0:00:11]} 4. g3 {[%emt 0:00:06]} Bd6 {[%emt 0:01:10]} 5. Bg2 {[%emt 0:00:07]} Nf6 {[%emt 0:00:39]} 6. Ngf3 {[%emt 0:00:17]} O-O {[%emt 0:00:22]} 7. O-O {[%emt 0:00:08]} Re8 {[%emt 0:00:35]} 8. Nh4 {[%emt 0:02:39]} Qc7 {[%emt 0:07:49]} 9. h3 {[%emt 0:02:17]} a5 {[%emt 0:03:12]} 10. Qf3 {[%emt 0:00:47]} Nbd7 {[%emt 0:08:57]} 11. Nf5 {[%emt 0:00:25]} Bf8 {[%emt 0:07:13]} 12. g4 {[%emt 0:10:03]} g6 {[%emt 0:08:18]} 13. Ng3 {[%emt 0:02:42]} h6 {[%emt 0:02:35]} 14. h4 {[%emt 0:01:08]} dxe4 {[%emt 0:00:47]} 15. Ndxe4 {[%emt 0:00:59]} Nxe4 {[%emt 0:10:39]} 16. Nxe4 {[%emt 0:00:12]} Bg7 {[%emt 0:04:13]} 17. Be3 {[%emt 0:04:41]} Re6 {[%emt 0:04:12]} 18. g5 {[%emt 0:00:32]} h5 {[%emt 0:06:18]} 19. Qg3 {[%emt 0:08:59]} Nf8 {[%emt 0:11:05]} 20. f4 {[%emt 0:05:45]} exf4 {[%emt 0:03:35]} 21. Bxf4 {[%emt 0:00:12]} Be5 {[%emt 0:00:36]} 22. Bxe5 {[%emt 0:03:26]} Qxe5 {[%emt 0:00:40]} 23. Qf2 {[%emt 0:00:02]} Qc7 {[%emt 0:02:57]} 24. Nf6+ {[%emt 0:00:26]} Kg7 {[%emt 0:01:34]} 25. Rae1 {[%emt 0:00:12]} Rxe1 {[%emt 0:07:01]} 26. Rxe1 {[%emt 0:00:27]} Qb8 {[%emt 0:00:18]} 27. Ne8+ {[%emt 0:00:45]} Kg8 {[%emt 0:00:54]} 28. Qf6 {[%emt 0:00:13]} 1-0

[Event "Orsha A 2021"]
[Site "Orsha"]
[Date "2021.04.06"]
[Round "1.5"]
[White "Kaniusheuski, Raman"]
[Black "Sargsyan, Anna M."]
[Result "0-1"]
[ECO "B11"]
[WhiteElo "1622"]
[BlackElo "2380"]
[Annotator "ChessBase"]
[PlyCount "98"]
[EventDate "2021.04.06"]
[EventType "swiss"]
[EventCountry "BLR"]
[SourceTitle "playchess.com"]
[Source "ChessBase"]
[SourceQuality "1"]
[TimeControl "5400+30"]

1. e4 {[%emt 0:00:00]} c6 {[%emt 0:00:00]} 2. Nc3 {[%emt 0:00:09]} d5 {[%emt 0:00:00]} 3. Nf3 {[%emt 0:00:09]} Bg4 {[%emt 0:00:00]} 4. h3 {[%emt 0:00:28]} Bh5 {[%emt 0:00:00]} 5. Be2 {[%emt 0:07:33]} e6 {[%emt 0:01:03]} 6. d4 {[%emt 0:01:52]} dxe4 {[%emt 0:00:08]} 7. Nxe4 {[%emt 0:00:07]} Nd7 {[%emt 0:00:14]} 8. O-O {[%emt 0:06:07]} Ngf6 {[%emt 0:00:12]} 9. Ng3 {[%emt 0:00:49]} Bg6 {[%emt 0:00:10]} 10. Bd3 {[%emt 0:00:37]} Bd6 {[%emt 0:00:30]} 11. Bg5 {[%emt 0:05:18]} Qc7 {[%emt 0:00:14]} 12. Ne2 {[%emt 0:06:05]} O-O {[%emt 0:00:11]} 13. Bxg6 {[%emt 0:02:29]} hxg6 {[%emt 0:00:10]} 14. Qd3 {[%emt 0:00:13]} c5 {[%emt 0:02:18]} 15. Nc3 {[%emt 0:03:22]} a6 {[%emt 0:01:58]} 16. d5 {[%emt 0:04:37]} c4 {[%emt 0:04:27]} 17. Qd2 {[%emt 0:00:48]} e5 {[%emt 0:00:10]} 18. Rfe1 {[%emt 0:01:42]} Rfe8 {[%emt 0:00:03]} 19. Ne4 {[%emt 0:03:54]} Nxe4 {[%emt 0:00:11]} 20. Rxe4 {[%emt 0:00:19]} f6 {[%emt 0:00:19]} 21. Bh4 {[%emt 0:01:11]} b5 {[%emt 0:01:10]} 22. Rae1 {[%emt 0:02:09]} Rad8 {[%emt 0:00:14]} 23. Nd4 {[%emt 0:01:58]} Nc5 {[%emt 0:01:04]} 24. R4e2 {[%emt 0:02:31]} Qf7 {[%emt 0:01:22]} 25. Nc6 {[%emt 0:05:20]} Rd7 {[%emt 0:00:02]} 26. b4 {[%emt 0:00:32]} Na4 {[%emt 0:00:08]} 27. c3 {[%emt 0:04:40]} Bf8 {[%emt 0:00:17]} 28. Rd1 {[%emt 0:02:28]} Rc8 {[%emt 0:00:03]} 29. Na5 {[%emt 0:04:24]} Nb6 {[%emt 0:00:08]} 30. Qc2 {[%emt 0:01:13]} Rxd5 {[%emt 0:00:09]} 31. Rxd5 {[%emt 0:00:31]} Nxd5 {[%emt 0:00:07]} 32. a3 {[%emt 0:02:21]} Nf4 {[%emt 0:02:46]} 33. Rd2 {[%emt 0:00:15]} Nd3 {[%emt 0:00:13]} 34. Qb1 {[%emt 0:01:35]} e4 {[%emt 0:00:23]} 35. a4 {[%emt 0:00:29]} g5 {[%emt 0:00:15]} 36. Bg3 {[%emt 0:00:17]} f5 {[%emt 0:00:07]} 37. axb5 {[%emt 0:01:06]} axb5 {[%emt 0:00:08]} 38. f3 {[%emt 0:03:24]} Qa7+ {[%emt 0:00:08]} 39. Kf1 {[%emt 0:00:40]} f4 {[%emt 0:03:34]} 40. Be1 {[%emt 0:00:21]} exf3 {[%emt 0:00:40]} 41. gxf3 {[%emt 0:00:07]} Qe3 {[%emt 0:00:08]} 42. Qd1 {[%emt 0:00:35]} Qe6 {[%emt 0:04:33]} 43. Rg2 {[%emt 0:04:01]} Qxh3 {[%emt 0:00:19]} 44. Qe2 {[%emt 0:00:29]} Qf5 {[%emt 0:01:17]} 45. Bd2 {[%emt 0:02:29]} Ne5 {[%emt 0:00:53]} 46. Kf2 {[%emt 0:00:58]} Be7 {[%emt 0:00:09]} 47. Nb7 {[%emt 0:02:25]} Rc7 {[%emt 0:00:10]} 48. Na5 {[%emt 0:00:18]} Rd7 {[%emt 0:00:06]} 49. Rg1 {[%emt 0:00:35]} Rd3 {[%emt 0:00:09]} 0-1

[Event "Orsha A 2021"]
[Site "Orsha"]
[Date "2021.04.06"]
[Round "1.6"]
[White "Barseghyan, Armen Ar."]
[Black "Baisheva, Nyurguiaana"]
[Result "1-0"]
[ECO "D38"]
[WhiteElo "2358"]
[BlackElo "1701"]
[Annotator "ChessBase"]
[PlyCount "61"]
[EventDate "2021.04.06"]
[EventType "swiss"]
[EventCountry "BLR"]
[SourceTitle "playchess.com"]
[Source "ChessBase"]
[SourceQuality "1"]
[TimeControl "5400+30"]

1. d4 {[%emt 0:00:00]} Nf6 {[%emt 0:00:00]} 2. c4 {[%emt 0:00:13]} e6 {[%emt 0:00:00]} 3. Nc3 {[%emt 0:00:30]} Bb4 {[%emt 0:01:07]} 4. Nf3 {[%emt 0:00:19]} d5 {[%emt 0:00:41]} 5. cxd5 {[%emt 0:00:32]} exd5 {[%emt 0:00:33]} 6. Bf4 {[%emt 0:00:21]} O-O {[%emt 0:00:48]} 7. e3 {[%emt 0:00:32]} Ne4 {[%emt 0:02:36]} 8. Rc1 {[%emt 0:00:58]} c6 {[%emt 0:00:34]} 9. Bd3 {[%emt 0:03:58]} f5 {[%emt 0:02:36]} 10. Qb3 {[%emt 0:05:07]} Qe7 {[%emt 0:07:44]} 11. h4 {[%emt 0:13:55]} h6 {[%emt 0:01:37]} 12. Ne5 {[%emt 0:04:35]} Rf6 {[%emt 0:07:06]} 13. h5 {[%emt 0:07:37]} Nxc3 {[%emt 0:07:55]} 14. bxc3 {[%emt 0:00:05]} Bd6 {[%emt 0:00:07]} 15. c4 {[%emt 0:01:27]} dxc4 {[%emt 0:17:26]} 16. Bxc4+ {[%emt 0:00:05]} Kf8 {[%emt 0:03:51]} 17. O-O {[%emt 0:04:49]} Qc7 {[%emt 0:04:50]} 18. Ng6+ {[%emt 0:01:35]} Ke8 {[%emt 0:00:31]} 19. Be5 {[%emt 0:01:14]} Nd7 {[%emt 0:01:47]} 20. Bxf6 {[%emt 0:00:24]} Nxf6 {[%emt 0:00:06]} 21. Nf4 {[%emt 0:02:33]} Bxf4 {[%emt 0:06:31]} 22. exf4 {[%emt 0:00:04]} Qxf4 {[%emt 0:00:07]} 23. Rfe1+ {[%emt 0:10:57]} Kd7 {[%emt 0:02:54]} 24. Be6+ {[%emt 0:10:10]} Kc7 {[%emt 0:02:33]} 25. Bxc8 {[%emt 0:00:14]} Rxc8 {[%emt 0:00:10]} 26. Re7+ {[%emt 0:02:36]} Kd8 {[%emt 0:00:10]} 27. Rce1 {[%emt 0:00:59]} Ne4 {[%emt 0:01:54]} 28. R1xe4 {[%emt 0:00:25]} fxe4 {[%emt 0:00:11]} 29. Qe6 {[%emt 0:00:20]} Qc1+ {[%emt 0:00:31]} 30. Kh2 {[%emt 0:00:03]} Qf4+ {[%emt 0:00:05]} 31. Kh3 {[%emt 0:00:07]} 1-0

[Event "Orsha A 2021"]
[Site "Orsha"]
[Date "2021.04.06"]
[Round "1.7"]
[White "Artemov, Maxim"]
[Black "Tsaruk, Maksim"]
[Result "0-1"]
[ECO "E04"]
[WhiteElo "1585"]
[BlackElo "2306"]
[Annotator "ChessBase"]
[PlyCount "112"]
[EventDate "2021.04.06"]
[EventType "swiss"]
[EventCountry "BLR"]
[SourceTitle "playchess.com"]
[Source "ChessBase"]
[SourceQuality "1"]
[TimeControl "5400+30"]

1. d4 {[%emt 0:00:00]} Nf6 {[%emt 0:00:00]} 2. Nf3 {[%emt 0:00:00]} d5 {[%emt 0:01:02]} 3. c4 {[%emt 0:00:00]} e6 {[%emt 0:00:27]} 4. g3 {[%emt 0:00:00]} dxc4 {[%emt 0:00:53]} 5. Bg2 {[%emt 0:00:47]} c5 {[%emt 0:00:08]} 6. O-O {[%emt 0:00:08]} Nc6 {[%emt 0:00:03]} 7. Ne5 {[%emt 0:00:10]} Bd7 {[%emt 0:01:04]} 8. Na3 {[%emt 0:04:47]} cxd4 {[%emt 0:02:08]} 9. Naxc4 {[%emt 0:03:29]} Be7 {[%emt 0:02:32]} 10. Bf4 {[%emt 0:07:42]} O-O {[%emt 0:11:50]} 11. Nxd7 {[%emt 0:04:28]} Qxd7 {[%emt 0:00:13]} 12. Ne5 {[%emt 0:02:13]} Nxe5 {[%emt 0:00:08]} 13. Bxe5 {[%emt 0:00:01]} Rad8 {[%emt 0:13:18]} 14. Qb3 {[%emt 0:31:29]} Ng4 {[%emt 0:00:08]} 15. Bf4 {[%emt 0:00:33]} e5 {[%emt 0:01:28]} 16. Bd2 {[%emt 0:01:02]} Nf6 {[%emt 0:00:08]} 17. Rac1 {[%emt 0:06:35]} b6 {[%emt 0:10:26]} 18. e3 {[%emt 0:07:10]} Bc5 {[%emt 0:15:31]} 19. Rfd1 {[%emt 0:03:56]} Qf5 {[%emt 0:00:56]} 20. exd4 {[%emt 0:02:03]} Bxd4 {[%emt 0:02:28]} 21. Be3 {[%emt 0:00:24]} Bxe3 {[%emt 0:00:18]} 22. Qxe3 {[%emt 0:00:03]} Rxd1+ {[%emt 0:00:07]} 23. Rxd1 {[%emt 0:00:05]} Qc2 {[%emt 0:00:04]} 24. Qd2 {[%emt 0:01:16]} Qxd2 {[%emt 0:03:22]} 25. Rxd2 {[%emt 0:00:07]} Rc8 {[%emt 0:00:10]} 26. h3 {[%emt 0:00:21]} Kf8 {[%emt 0:02:20]} 27. Re2 {[%emt 0:01:29]} Nd7 {[%emt 0:00:35]} 28. Be4 {[%emt 0:00:41]} g6 {[%emt 0:01:03]} 29. Bd5 {[%emt 0:07:08]} Rc5 {[%emt 0:06:17]} 30. Bb7 {[%emt 0:02:30]} a5 {[%emt 0:03:24]} 31. a3 {[%emt 0:02:40]} Ke7 {[%emt 0:01:49]} 32. Rd2 {[%emt 0:00:59]} Nf8 {[%emt 0:02:29]} 33. Kg2 {[%emt 0:01:08]} Ne6 {[%emt 0:00:52]} 34. Bd5 {[%emt 0:02:38]} Nd4 {[%emt 0:00:13]} 35. Be4 {[%emt 0:00:48]} f5 {[%emt 0:00:28]} 36. Bd3 {[%emt 0:00:17]} Rc1 {[%emt 0:00:35]} 37. Bf1 {[%emt 0:02:31]} Kd6 {[%emt 0:10:48]} 38. f4 {[%emt 0:03:21]} h6 {[%emt 0:03:13]} 39. Kf2 {[%emt 0:01:44]} Ke6 {[%emt 0:04:02]} 40. Bg2 {[%emt 0:01:39]} Rc2 {[%emt 0:00:25]} 41. Rxc2 {[%emt 0:00:21]} Nxc2 {[%emt 0:00:04]} 42. fxe5 {[%emt 0:00:11]} Kxe5 {[%emt 0:00:06]} 43. Bc6 {[%emt 0:00:40]} g5 {[%emt 0:00:51]} 44. Be8 {[%emt 0:00:19]} Ke4 {[%emt 0:02:57]} 45. Bg6 {[%emt 0:00:07]} Ne3 {[%emt 0:00:10]} 46. b4 {[%emt 0:00:29]} Nc4 {[%emt 0:00:44]} 47. bxa5 {[%emt 0:00:31]} bxa5 {[%emt 0:00:01]} 48. a4 {[%emt 0:00:28]} Ne5 {[%emt 0:00:52]} 49. Be8 {[%emt 0:00:01]} Kd4 {[%emt 0:00:27]} 50. h4 {[%emt 0:00:38]} g4 {[%emt 0:00:41]} 51. Bb5 {[%emt 0:00:23]} Ke4 {[%emt 0:00:06]} 52. Ba6 {[%emt 0:00:32]} Nd3+ {[%emt 0:00:14]} 53. Ke2 {[%emt 0:00:30]} Nc5 {[%emt 0:00:08]} 54. Bb5 {[%emt 0:00:06]} f4 {[%emt 0:01:01]} 55. Bc6+ {[%emt 0:01:06]} Ke5 {[%emt 0:00:08]} 56. Kf2 {[%emt 0:00:36]} Ne4+ {[%emt 0:00:06]} 0-1

[Event "Orsha A 2021"]
[Site "Orsha"]
[Date "2021.04.06"]
[Round "2.1"]
[White "Aleksandrov, Aleksej"]
[Black "Vainerchuk, Barys"]
[Result "1/2-1/2"]
[ECO "A18"]
[WhiteElo "2563"]
[BlackElo "1993"]
[Annotator "ChessBase"]
[PlyCount "137"]
[EventDate "2021.04.06"]
[EventType "swiss"]
[EventCountry "BLR"]
[SourceTitle "playchess.com"]
[Source "ChessBase"]
[SourceQuality "1"]
[TimeControl "5400+30"]

1. c4 {[%emt 0:03:22]} Nf6 {[%emt 0:00:00]} 2. Nc3 {[%emt 0:00:04]} e6 {[%emt 0:00:51]} 3. e4 {[%emt 0:00:04]} d5 {[%emt 0:00:22]} 4. cxd5 {[%emt 0:00:17]} exd5 {[%emt 0:00:04]} 5. e5 {[%emt 0:00:03]} d4 {[%emt 0:00:44]} 6. exf6 {[%emt 0:05:24]} dxc3 {[%emt 0:00:06]} 7. Qa4+ {[%emt 0:09:26]} Nc6 {[%emt 0:14:27]} 8. Qe4+ {[%emt 0:06:08]} Be6 {[%emt 0:01:16]} 9. dxc3 {[%emt 0:15:41]} gxf6 {[%emt 0:07:19]} 10. Be3 {[%emt 0:06:49]} f5 {[%emt 0:10:23]} 11. Qa4 {[%emt 0:00:36]} Qd5 {[%emt 0:10:35]} 12. Nf3 {[%emt 0:13:47]} Qe4 {[%emt 0:05:40]} 13. Bb5 {[%emt 0:08:18]} Qxa4 {[%emt 0:04:45]} 14. Bxa4 {[%emt 0:00:05]} O-O-O {[%emt 0:01:04]} 15. O-O {[%emt 0:01:07]} Bd6 {[%emt 0:08:34]} 16. Nd4 {[%emt 0:02:27]} Nxd4 {[%emt 0:03:03]} 17. Bxd4 {[%emt 0:00:05]} Rhg8 {[%emt 0:00:05]} 18. Bf6 {[%emt 0:01:16]} Rdf8 {[%emt 0:03:24]} 19. Rfe1 {[%emt 0:00:10]} Rg6 {[%emt 0:02:01]} 20. Be5 {[%emt 0:00:07]} Bd5 {[%emt 0:00:18]} 21. g3 {[%emt 0:00:08]} Be4 {[%emt 0:00:47]} 22. Bxd6 {[%emt 0:00:11]} Rxd6 {[%emt 0:00:04]} 23. Rad1 {[%emt 0:00:37]} Rfd8 {[%emt 0:00:14]} 24. Rxd6 {[%emt 0:00:04]} Rxd6 {[%emt 0:01:47]} 25. Rd1 {[%emt 0:00:03]} Rxd1+ {[%emt 0:06:49]} 26. Bxd1 {[%emt 0:00:01]} f4 {[%emt 0:03:55]} 27. gxf4 {[%emt 0:01:45]} Kd7 {[%emt 0:01:15]} 28. f3 {[%emt 0:00:47]} Bd5 {[%emt 0:01:10]} 29. a3 {[%emt 0:00:03]} f5 {[%emt 0:01:37]} 30. Kf2 {[%emt 0:00:25]} Ke6 {[%emt 0:00:08]} 31. b4 {[%emt 0:01:19]} b6 {[%emt 0:01:01]} 32. b5 {[%emt 0:00:14]} Kd6 {[%emt 0:01:47]} 33. Bc2 {[%emt 0:01:22]} Ke6 {[%emt 0:00:16]} 34. Ke3 {[%emt 0:00:49]} Bb7 {[%emt 0:00:32]} 35. Bd3 {[%emt 0:01:40]} Bc8 {[%emt 0:00:22]} 36. Bc4+ {[%emt 0:02:44]} Kd6 {[%emt 0:00:05]} 37. Kf2 {[%emt 0:00:57]} Ke7 {[%emt 0:00:06]} 38. Kg3 {[%emt 0:01:21]} Kf6 {[%emt 0:00:05]} 39. Bd5 {[%emt 0:00:41]} Bd7 {[%emt 0:00:37]} 40. c4 {[%emt 0:00:59]} h6 {[%emt 0:00:27]} 41. Kf2 {[%emt 0:00:15]} Ke7 {[%emt 0:00:10]} 42. Ke3 {[%emt 0:00:07]} Kd6 {[%emt 0:00:05]} 43. Kd4 {[%emt 0:00:03]} Bc8 {[%emt 0:00:31]} 44. Bf7 {[%emt 0:01:52]} Bd7 {[%emt 0:00:15]} 45. Ke3 {[%emt 0:00:46]} Ke7 {[%emt 0:00:20]} 46. Bg8 {[%emt 0:00:41]} Bc8 {[%emt 0:00:21]} 47. Kf2 {[%emt 0:00:14]} Bd7 {[%emt 0:00:17]} 48. Bd5 {[%emt 0:01:06]} Bc8 {[%emt 0:00:17]} 49. Kg3 {[%emt 0:00:22]} Kf6 {[%emt 0:00:06]} 50. Kh4 {[%emt 0:00:13]} Kg6 {[%emt 0:00:38]} 51. Kg3 {[%emt 0:01:39]} Kf6 {[%emt 0:00:04]} 52. Kg2 {[%emt 0:00:05]} Bd7 {[%emt 0:00:23]} 53. Kf2 {[%emt 0:00:04]} Ke7 {[%emt 0:00:09]} 54. Ke3 {[%emt 0:00:10]} Kd6 {[%emt 0:00:19]} 55. Kd4 {[%emt 0:02:14]} Bc8 {[%emt 0:00:05]} 56. Ba8 {[%emt 0:00:05]} Bd7 {[%emt 0:00:04]} 57. Bb7 {[%emt 0:00:04]} Be6 {[%emt 0:00:11]} 58. a4 {[%emt 0:00:33]} Bd7 {[%emt 0:00:05]} 59. Bd5 {[%emt 0:01:15]} Bc8 {[%emt 0:00:04]} 60. a5 {[%emt 0:00:59]} Bd7 {[%emt 0:00:04]} 61. a6 {[%emt 0:04:55]} Bc8 {[%emt 0:00:04]} 62. Bc6 {[%emt 0:01:04]} Be6 {[%emt 0:00:05]} 63. Be8 {[%emt 0:01:00]} Bc8 {[%emt 0:00:05]} 64. Bg6 {[%emt 0:01:55]} Bd7 {[%emt 0:00:10]} 65. h4 {[%emt 0:00:52]} Bc8 {[%emt 0:00:11]} 66. Bh7 {[%emt 0:00:22]} Bd7 {[%emt 0:00:07]} 67. Bg6 {[%emt 0:00:11]} Bc8 {[%emt 0:00:04]} 68. Bh7 {[%emt 0:00:03]} Bd7 {[%emt 0:00:03]} 69. Bg6 {[%emt 0:09:55]} 1/2-1/2